[Event "*** Titled Tuesday Blitz"]
[Site "Chess.com"]
[Date "2020.10.27"]
[Round "6"]
[White "Resignify"]
[Black "LileKoridze"]
[Result "0-1"]
[WhiteElo "2197"]
[BlackElo "2374"]
[TimeControl "180+1"]
[EndTime "11:06:23 PDT"]
[Termination "LileKoridze won on time"]

1. e4 {[%clk 0:03:00.9]} 1... c5 {[%clk 0:02:59.5]} 2. Nc3 {[%clk 0:03:00.4]}
2... Nc6 {[%clk 0:02:59.4]} 3. g3 {[%clk 0:03:00.4]} 3... d6 {[%clk 0:02:56.1]}
4. Bg2 {[%clk 0:03:00.2]} 4... g6 {[%clk 0:02:56.8]} 5. d3 {[%clk 0:03:00.3]}
5... Bg7 {[%clk 0:02:57.4]} 6. f4 {[%clk 0:03:00.3]} 6... Nf6 {[%clk 0:02:57.5]}
7. Nf3 {[%clk 0:03:00.4]} 7... O-O {[%clk 0:02:58]} 8. O-O {[%clk 0:03:00.4]}
8... Rb8 {[%clk 0:02:55.8]} 9. h3 {[%clk 0:02:55.1]} 9... Qc7 {[%clk 0:02:51.9]}
10. g4 {[%clk 0:02:49]} 10... b5 {[%clk 0:02:50.7]} 11. f5 {[%clk 0:02:41.3]}
11... b4 {[%clk 0:02:50]} 12. Ne2 {[%clk 0:02:16.6]} 12... c4 {[%clk 0:02:45.2]}
13. Nf4 {[%clk 0:01:41.9]} 13... cxd3 {[%clk 0:02:43.3]} 14. cxd3 {[%clk
0:01:40.4]} 14... Ba6 {[%clk 0:02:43.5]} 15. g5 {[%clk 0:01:38]} 15... Nd7
{[%clk 0:02:43.4]} 16. Nd5 {[%clk 0:01:36]} 16... Qd8 {[%clk 0:02:43.8]} 17. f6
{[%clk 0:01:15.6]} 17... Bh8 {[%clk 0:02:17.6]} 18. Nd4 {[%clk 0:00:27.7]} 18...
Nde5 {[%clk 0:02:06.2]} 19. Bf4 {[%clk 0:00:18.1]} 19... exf6 {[%clk 0:01:59]}
20. gxf6 {[%clk 0:00:14.7]} 20... Bxf6 {[%clk 0:01:55.5]} 21. Nxc6 {[%clk
0:00:14.3]} 21... Nxc6 {[%clk 0:01:55.3]} 22. Bh6 {[%clk 0:00:11.3]} 22... Bd4+
{[%clk 0:01:53.1]} 23. Kh1 {[%clk 0:00:10.3]} 23... Re8 {[%clk 0:01:53.4]} 24.
Rc1 {[%clk 0:00:09.4]} 24... Rc8 {[%clk 0:01:40.5]} 25. Qb3 {[%clk 0:00:06.4]}
25... Re6 {[%clk 0:00:58]} 26. Bf4 {[%clk 0:00:03.2]} 26... Bg7 {[%clk
0:00:53.7]} 27. Nxb4 {[%clk 0:00:02.4]} 27... Nxb4 {[%clk 0:00:51.8]} 28. Qxb4
{[%clk 0:00:03]} 28... Bxd3 {[%clk 0:00:51]} 29. Rfd1 {[%clk 0:00:02.3]} 29...
Rxc1 {[%clk 0:00:49.8]} 30. Rxc1 {[%clk 0:00:01.9]} 30... Re8 {[%clk 0:00:45.1]}
31. Rd1 {[%clk 0:00:01.4]} 31... Qf6 {[%clk 0:00:43]} 0-1

[Event "*** Titled Tuesday Blitz"]
[Site "Chess.com"]
[Date "2020.10.27"]
[Round "6"]
[White "Fischerev7"]
[Black "shineatchess"]
[Result "1-0"]
[WhiteElo "2421"]
[BlackElo "2190"]
[TimeControl "180+1"]
[EndTime "11:06:24 PDT"]
[Termination "Fischerev7 won on time"]

1. e4 {[%clk 0:03:00.9]} 1... Nf6 {[%clk 0:03:00.1]} 2. e5 {[%clk 0:02:58.8]}
2... Nd5 {[%clk 0:03:00.1]} 3. d4 {[%clk 0:02:56.1]} 3... d6 {[%clk 0:03:00.2]}
4. Nf3 {[%clk 0:02:55.7]} 4... dxe5 {[%clk 0:03:00.5]} 5. Nxe5 {[%clk
0:02:55.1]} 5... c6 {[%clk 0:03:01.1]} 6. Bd3 {[%clk 0:02:54]} 6... Nd7 {[%clk
0:02:57.8]} 7. Nxd7 {[%clk 0:02:53.2]} 7... Bxd7 {[%clk 0:02:57.2]} 8. O-O
{[%clk 0:02:52.7]} 8... g6 {[%clk 0:02:50.1]} 9. c4 {[%clk 0:02:52.4]} 9... Nc7
{[%clk 0:02:44.9]} 10. Nc3 {[%clk 0:02:51.9]} 10... Bg7 {[%clk 0:02:45]} 11. Bg5
{[%clk 0:02:51.7]} 11... Bxd4 {[%clk 0:02:26.9]} 12. Re1 {[%clk 0:02:47.4]}
12... Ne6 {[%clk 0:02:20.9]} 13. Bh6 {[%clk 0:02:43.6]} 13... Qb6 {[%clk
0:02:09.4]} 14. Qc2 {[%clk 0:02:28]} 14... O-O-O {[%clk 0:01:56.4]} 15. Be3
{[%clk 0:01:52.3]} 15... Bxe3 {[%clk 0:01:54.1]} 16. Rxe3 {[%clk 0:01:53.2]}
16... Nd4 {[%clk 0:01:43.6]} 17. Qc1 {[%clk 0:01:45.2]} 17... Be6 {[%clk
0:01:35.6]} 18. Ne4 {[%clk 0:01:42.5]} 18... h6 {[%clk 0:01:14.1]} 19. Qc3
{[%clk 0:01:38.3]} 19... Bf5 {[%clk 0:01:00.1]} 20. c5 {[%clk 0:01:35.9]} 20...
Qc7 {[%clk 0:00:58.7]} 21. Bc4 {[%clk 0:01:32.5]} 21... Bxe4 {[%clk 0:00:45.2]}
22. Rxe4 {[%clk 0:01:33.4]} 22... e5 {[%clk 0:00:45.1]} 23. Rae1 {[%clk
0:01:27.9]} 23... Rhe8 {[%clk 0:00:44]} 24. f4 {[%clk 0:01:22.7]} 24... f5
{[%clk 0:00:26.9]} 25. Rxe5 {[%clk 0:01:19.8]} 25... Rxe5 {[%clk 0:00:25.2]} 26.
Rxe5 {[%clk 0:01:20.4]} 26... Kb8 {[%clk 0:00:16.9]} 27. h3 {[%clk 0:01:16.8]}
27... a6 {[%clk 0:00:15.8]} 28. b4 {[%clk 0:01:10.8]} 28... Ka7 {[%clk
0:00:15.3]} 29. Qe3 {[%clk 0:01:08.4]} 29... Rd7 {[%clk 0:00:10.9]} 30. a4
{[%clk 0:01:06.4]} 30... h5 {[%clk 0:00:07.2]} 31. Kh2 {[%clk 0:01:04.9]} 31...
a5 {[%clk 0:00:07.2]} 32. b5 {[%clk 0:01:02.2]} 32... cxb5 {[%clk 0:00:06.7]}
33. axb5 {[%clk 0:01:02]} 33... b6 {[%clk 0:00:02.4]} 34. c6 {[%clk 0:01:00.5]}
1-0

[Event "*** Titled Tuesday Blitz"]
[Site "Chess.com"]
[Date "2020.10.27"]
[Round "6"]
[White "RU_B9"]
[Black "VladaSviridova"]
[Result "0-1"]
[WhiteElo "1736"]
[BlackElo "2275"]
[TimeControl "180+1"]
[EndTime "11:06:24 PDT"]
[Termination "VladaSviridova won on time"]

1. c4 {[%clk 0:03:00.9]} 1... c6 {[%clk 0:02:59.8]} 2. Nf3 {[%clk 0:02:57.2]}
2... d5 {[%clk 0:03:00.4]} 3. e3 {[%clk 0:02:57.8]} 3... Nf6 {[%clk 0:03:00.4]}
4. b3 {[%clk 0:02:57.5]} 4... e6 {[%clk 0:03:00.5]} 5. Bb2 {[%clk 0:02:56.5]}
5... Bd6 {[%clk 0:03:00.7]} 6. d4 {[%clk 0:02:55.6]} 6... O-O {[%clk 0:03:00.2]}
7. Nbd2 {[%clk 0:02:55]} 7... Nbd7 {[%clk 0:03:00.1]} 8. Bd3 {[%clk 0:02:53]}
8... b6 {[%clk 0:03:00]} 9. O-O {[%clk 0:02:51.6]} 9... Bb7 {[%clk 0:03:00.6]}
10. Qe2 {[%clk 0:02:50.9]} 10... Re8 {[%clk 0:02:45.6]} 11. Rfd1 {[%clk
0:02:42.7]} 11... Qe7 {[%clk 0:02:43.5]} 12. Ne5 {[%clk 0:02:34.2]} 12... c5
{[%clk 0:02:24.5]} 13. Nxd7 {[%clk 0:02:23.2]} 13... Nxd7 {[%clk 0:02:22.5]} 14.
e4 {[%clk 0:02:15.2]} 14... cxd4 {[%clk 0:01:57.5]} 15. exd5 {[%clk 0:02:01.6]}
15... e5 {[%clk 0:01:56.1]} 16. Ne4 {[%clk 0:01:43.5]} 16... Nf6 {[%clk
0:01:39.5]} 17. a4 {[%clk 0:01:34.6]} 17... Bb4 {[%clk 0:01:24.9]} 18. Rf1
{[%clk 0:01:08.8]} 18... g6 {[%clk 0:00:57.9]} 19. Nxf6+ {[%clk 0:00:26.8]}
19... Qxf6 {[%clk 0:00:57.4]} 20. Ba3 {[%clk 0:00:20.8]} 20... Bxa3 {[%clk
0:00:54]} 21. Rxa3 {[%clk 0:00:21.7]} 21... Qd6 {[%clk 0:00:53.7]} 22. Ra2
{[%clk 0:00:16.4]} 22... e4 {[%clk 0:00:53.6]} 23. Bxe4 {[%clk 0:00:10.8]} 23...
f5 {[%clk 0:00:53.2]} 24. f3 {[%clk 0:00:11.4]} 24... fxe4 {[%clk 0:00:51.4]}
25. fxe4 {[%clk 0:00:11.5]} 25... Qe5 {[%clk 0:00:50.3]} 26. Qd3 {[%clk
0:00:11.8]} 26... Rf8 {[%clk 0:00:49.4]} 27. Rd2 {[%clk 0:00:09.8]} 27... Rxf1+
{[%clk 0:00:48.1]} 28. Kxf1 {[%clk 0:00:10.2]} 28... Rf8+ {[%clk 0:00:48.4]} 29.
Kg1 {[%clk 0:00:09.5]} 29... Rf4 {[%clk 0:00:38.9]} 30. Qxd4 {[%clk 0:00:01.3]}
30... Rxe4 {[%clk 0:00:37.3]} 0-1

[Event "*** Titled Tuesday Blitz"]
[Site "Chess.com"]
[Date "2020.10.27"]
[Round "6"]
[White "Andrii_Prydun"]
[Black "WiktoriaPOL"]
[Result "1-0"]
[WhiteElo "2374"]
[BlackElo "2075"]
[TimeControl "180+1"]
[EndTime "11:06:25 PDT"]
[Termination "Andrii_Prydun won on time"]

1. d3 {[%clk 0:03:00.9]} 1... e5 {[%clk 0:02:55]} 2. Nd2 {[%clk 0:03:00.4]} 2...
d5 {[%clk 0:02:54.9]} 3. e4 {[%clk 0:02:58.5]} 3... d4 {[%clk 0:02:53.4]} 4.
Ngf3 {[%clk 0:02:57.6]} 4... Nc6 {[%clk 0:02:41.5]} 5. Be2 {[%clk 0:02:56.3]}
5... Nf6 {[%clk 0:02:35]} 6. O-O {[%clk 0:02:54.7]} 6... Be7 {[%clk 0:02:34.2]}
7. c3 {[%clk 0:02:51.2]} 7... O-O {[%clk 0:02:32.2]} 8. cxd4 {[%clk 0:02:48.9]}
8... exd4 {[%clk 0:02:31.1]} 9. Nb3 {[%clk 0:02:43.8]} 9... a5 {[%clk 0:02:24]}
10. a4 {[%clk 0:02:35.8]} 10... Be6 {[%clk 0:02:11.1]} 11. Bf4 {[%clk
0:02:32.8]} 11... Bd6 {[%clk 0:01:57.9]} 12. Bxd6 {[%clk 0:02:30.4]} 12... Qxd6
{[%clk 0:01:57.1]} 13. Nbd2 {[%clk 0:02:29.9]} 13... Qb4 {[%clk 0:01:53.8]} 14.
Qc2 {[%clk 0:02:28.6]} 14... Ra6 {[%clk 0:01:46.3]} 15. Rfc1 {[%clk 0:02:26]}
15... Rb6 {[%clk 0:01:44.8]} 16. Rab1 {[%clk 0:02:18.2]} 16... Ba2 {[%clk
0:01:41.9]} 17. Ra1 {[%clk 0:02:12.3]} 17... Be6 {[%clk 0:01:41.3]} 18. Rcb1
{[%clk 0:02:01.4]} 18... Ne7 {[%clk 0:01:28.1]} 19. Nc4 {[%clk 0:01:48.5]} 19...
Bxc4 {[%clk 0:01:21.8]} 20. dxc4 {[%clk 0:01:45.5]} 20... Qb3 {[%clk 0:01:01.8]}
21. Qxb3 {[%clk 0:01:42.2]} 21... Rxb3 {[%clk 0:01:01.7]} 22. Nxd4 {[%clk
0:01:41.4]} 22... Rb4 {[%clk 0:00:58.1]} 23. b3 {[%clk 0:01:28.6]} 23... Nxe4
{[%clk 0:00:54.7]} 24. Bf3 {[%clk 0:00:59.9]} 24... Nd2 {[%clk 0:00:53.8]} 25.
Rb2 {[%clk 0:00:53.7]} 25... Nxc4 {[%clk 0:00:53.3]} 26. Re2 {[%clk 0:00:50.9]}
26... Nd6 {[%clk 0:00:17.1]} 27. Nc2 {[%clk 0:00:46.3]} 27... Rxb3 {[%clk
0:00:11.8]} 28. Rxe7 {[%clk 0:00:45.4]} 28... Rc3 {[%clk 0:00:11.5]} 29. Ne3
{[%clk 0:00:44.8]} 29... c6 {[%clk 0:00:06.8]} 30. Rd1 {[%clk 0:00:42.9]} 30...
Re8 {[%clk 0:00:05.7]} 31. Rxd6 {[%clk 0:00:40.6]} 31... Rc1+ {[%clk 0:00:05.2]}
32. Nd1 {[%clk 0:00:40.1]} 1-0

[Event "*** Titled Tuesday Blitz"]
[Site "Chess.com"]
[Date "2020.10.27"]
[Round "6"]
[White "RaunakSadhwani2005"]
[Black "vladislavkovalev"]
[Result "1-0"]
[WhiteElo "2974"]
[BlackElo "2850"]
[TimeControl "180+1"]
[EndTime "11:06:26 PDT"]
[Termination "RaunakSadhwani2005 won on time"]

1. c4 {[%clk 0:03:00.9]} 1... g6 {[%clk 0:02:58.9]} 2. Nc3 {[%clk 0:02:59.4]}
2... Bg7 {[%clk 0:02:59.6]} 3. d4 {[%clk 0:02:57.8]} 3... d6 {[%clk 0:03:00.3]}
4. Nf3 {[%clk 0:02:53.5]} 4... Nf6 {[%clk 0:03:00.1]} 5. e4 {[%clk 0:02:52.8]}
5... O-O {[%clk 0:03:00.7]} 6. Be2 {[%clk 0:02:47.7]} 6... e5 {[%clk 0:03:01.2]}
7. d5 {[%clk 0:02:40.7]} 7... a5 {[%clk 0:02:57.4]} 8. Bg5 {[%clk 0:02:39.1]}
8... h6 {[%clk 0:02:57.6]} 9. Be3 {[%clk 0:02:38.2]} 9... Ng4 {[%clk 0:02:55.1]}
10. Bd2 {[%clk 0:02:34.4]} 10... f5 {[%clk 0:02:53.5]} 11. h3 {[%clk 0:02:27.7]}
11... Nf6 {[%clk 0:02:52.9]} 12. exf5 {[%clk 0:02:25.8]} 12... gxf5 {[%clk
0:02:53.8]} 13. O-O {[%clk 0:02:26.5]} 13... Na6 {[%clk 0:02:51.9]} 14. a3
{[%clk 0:02:23.2]} 14... Nc5 {[%clk 0:02:42.8]} 15. b4 {[%clk 0:02:14.5]} 15...
axb4 {[%clk 0:02:43.7]} 16. axb4 {[%clk 0:02:15.4]} 16... Rxa1 {[%clk
0:02:44.1]} 17. Qxa1 {[%clk 0:02:16.3]} 17... Nb3 {[%clk 0:02:44.8]} 18. Qd1
{[%clk 0:02:13.4]} 18... Nxd2 {[%clk 0:02:45.4]} 19. Qxd2 {[%clk 0:02:11.5]}
19... Bd7 {[%clk 0:02:37]} 20. Ra1 {[%clk 0:02:05.2]} 20... Qe7 {[%clk
0:02:25.3]} 21. Ra7 {[%clk 0:02:04]} 21... Bc8 {[%clk 0:02:23.1]} 22. Nb5 {[%clk
0:01:50.6]} 22... f4 {[%clk 0:02:03.2]} 23. Bd1 {[%clk 0:01:42.6]} 23... e4
{[%clk 0:02:01.5]} 24. Nfd4 {[%clk 0:01:37.3]} 24... e3 {[%clk 0:02:00.8]} 25.
Qe1 {[%clk 0:01:26.4]} 25... exf2+ {[%clk 0:01:30.1]} 26. Qxf2 {[%clk 0:01:27]}
26... Ne4 {[%clk 0:01:29]} 27. Qe1 {[%clk 0:01:22.1]} 27... Re8 {[%clk
0:01:09.5]} 28. Bf3 {[%clk 0:01:09.3]} 28... Bd7 {[%clk 0:00:09.4]} 29. Ne6
{[%clk 0:00:49.2]} 29... Bxe6 {[%clk 0:00:07.1]} 30. dxe6 {[%clk 0:00:44.3]}
30... Ng5 {[%clk 0:00:02.2]} 31. Bxb7 {[%clk 0:00:44.8]} 31... Qf7 {[%clk
0:00:01.8]} 32. exf7+ {[%clk 0:00:44.9]} 1-0

[Event "*** Titled Tuesday Blitz"]
[Site "Chess.com"]
[Date "2020.10.27"]
[Round "6"]
[White "Morshynska"]
[Black "Skat2704"]
[Result "0-1"]
[WhiteElo "2212"]
[BlackElo "2457"]
[TimeControl "180+1"]
[EndTime "11:06:26 PDT"]
[Termination "Skat2704 won by resignation"]

1. Nf3 {[%clk 0:03:00.9]} 1... d5 {[%clk 0:02:59.7]} 2. g3 {[%clk 0:03:01.3]}
2... Nf6 {[%clk 0:02:59]} 3. Bg2 {[%clk 0:03:01.6]} 3... e6 {[%clk 0:02:59.1]}
4. O-O {[%clk 0:03:02]} 4... Be7 {[%clk 0:02:58.9]} 5. d4 {[%clk 0:03:02.5]}
5... O-O {[%clk 0:02:58.6]} 6. c4 {[%clk 0:03:02.9]} 6... b6 {[%clk 0:02:58.6]}
7. Nc3 {[%clk 0:02:55.5]} 7... Bb7 {[%clk 0:02:58.4]} 8. cxd5 {[%clk 0:02:54.9]}
8... exd5 {[%clk 0:02:58.1]} 9. Bf4 {[%clk 0:02:54.3]} 9... Na6 {[%clk 0:02:58]}
10. Rc1 {[%clk 0:02:53.7]} 10... c5 {[%clk 0:02:57.6]} 11. a3 {[%clk 0:02:37.3]}
11... Nc7 {[%clk 0:02:55.7]} 12. dxc5 {[%clk 0:02:20.5]} 12... bxc5 {[%clk
0:02:55.2]} 13. Qb3 {[%clk 0:01:57.7]} 13... Qc8 {[%clk 0:02:28]} 14. Rfd1
{[%clk 0:01:07.2]} 14... Ne6 {[%clk 0:02:18.7]} 15. Ne5 {[%clk 0:01:04.2]} 15...
Nxf4 {[%clk 0:01:42.2]} 16. gxf4 {[%clk 0:01:05.1]} 16... Rb8 {[%clk 0:01:39.7]}
17. Na4 {[%clk 0:00:46.8]} 17... d4 {[%clk 0:01:28.6]} 18. Bxb7 {[%clk
0:00:41.5]} 18... Rxb7 {[%clk 0:01:28.2]} 19. Qc4 {[%clk 0:00:30.2]} 19... Qf5
{[%clk 0:01:10.1]} 20. e3 {[%clk 0:00:25.8]} 20... dxe3 {[%clk 0:01:05.1]} 21.
fxe3 {[%clk 0:00:26.7]} 21... Ne4 {[%clk 0:01:00.3]} 22. Qc2 {[%clk 0:00:20.1]}
22... Bf6 {[%clk 0:00:38.7]} 23. Nc4 {[%clk 0:00:18]} 23... Bh4 {[%clk
0:00:33.8]} 24. Qg2 {[%clk 0:00:17]} 24... Re7 {[%clk 0:00:29.6]} 25. Rc2 {[%clk
0:00:15.5]} 25... Re6 {[%clk 0:00:28.9]} 26. Re2 {[%clk 0:00:14.9]} 26... Rg6
{[%clk 0:00:28.4]} 27. Kh1 {[%clk 0:00:13.7]} 27... Rxg2 {[%clk 0:00:27.9]} 28.
Rxg2 {[%clk 0:00:14.6]} 28... Nf2+ {[%clk 0:00:27.9]} 0-1

[Event "*** Titled Tuesday Blitz"]
[Site "Chess.com"]
[Date "2020.10.27"]
[Round "6"]
[White "suyu28"]
[Black "svilson23"]
[Result "1-0"]
[WhiteElo "2606"]
[BlackElo "2376"]
[TimeControl "180+1"]
[EndTime "11:06:27 PDT"]
[Termination "suyu28 won on time"]

1. c4 {[%clk 0:02:58.1]} 1... Nf6 {[%clk 0:02:58.6]} 2. Nc3 {[%clk 0:02:56.6]}
2... e6 {[%clk 0:02:59.2]} 3. Nf3 {[%clk 0:02:56.3]} 3... d5 {[%clk 0:02:59.4]}
4. d4 {[%clk 0:02:56.4]} 4... c6 {[%clk 0:02:57.6]} 5. e3 {[%clk 0:02:53.3]}
5... Ne4 {[%clk 0:02:53.8]} 6. Nxe4 {[%clk 0:02:38.2]} 6... dxe4 {[%clk
0:02:54.1]} 7. Nd2 {[%clk 0:02:38.7]} 7... f5 {[%clk 0:02:53.2]} 8. Be2 {[%clk
0:02:39.1]} 8... Be7 {[%clk 0:02:47.9]} 9. O-O {[%clk 0:02:39.2]} 9... O-O
{[%clk 0:02:47.9]} 10. f3 {[%clk 0:02:39.3]} 10... exf3 {[%clk 0:02:47.5]} 11.
Nxf3 {[%clk 0:02:39.6]} 11... Nd7 {[%clk 0:02:47.5]} 12. Qc2 {[%clk 0:02:35.3]}
12... Kh8 {[%clk 0:02:23.6]} 13. e4 {[%clk 0:02:35.3]} 13... Nf6 {[%clk
0:02:22.1]} 14. exf5 {[%clk 0:02:31]} 14... exf5 {[%clk 0:02:22]} 15. Bd3 {[%clk
0:02:31.7]} 15... Ne4 {[%clk 0:01:49.3]} 16. Bxe4 {[%clk 0:02:27.1]} 16... fxe4
{[%clk 0:01:49.9]} 17. Qxe4 {[%clk 0:02:27.9]} 17... Bf5 {[%clk 0:01:49.6]} 18.
Qe2 {[%clk 0:02:26.8]} 18... Bg4 {[%clk 0:01:32.5]} 19. Be3 {[%clk 0:02:26.1]}
19... Qb6 {[%clk 0:01:27.6]} 20. Rad1 {[%clk 0:02:24.6]} 20... Bf6 {[%clk
0:01:24.5]} 21. h3 {[%clk 0:02:22.8]} 21... Bh5 {[%clk 0:01:21.6]} 22. g4 {[%clk
0:02:09.1]} 22... Bg6 {[%clk 0:01:21.6]} 23. g5 {[%clk 0:02:09.5]} 23... Be7
{[%clk 0:01:15.1]} 24. Ne5 {[%clk 0:02:09.9]} 24... Rxf1+ {[%clk 0:00:44.9]} 25.
Rxf1 {[%clk 0:02:07.9]} 25... c5 {[%clk 0:00:36.7]} 26. d5 {[%clk 0:01:52]}
26... Re8 {[%clk 0:00:35.4]} 27. Bf4 {[%clk 0:01:33.1]} 27... Kg8 {[%clk
0:00:28]} 28. Nxg6 {[%clk 0:01:27.8]} 28... Qxg6 {[%clk 0:00:27.4]} 29. Qe6+
{[%clk 0:01:27]} 29... Qxe6 {[%clk 0:00:23.8]} 30. dxe6 {[%clk 0:01:27.9]} 30...
h6 {[%clk 0:00:17]} 31. g6 {[%clk 0:01:24.6]} 31... Bf6 {[%clk 0:00:16.9]} 32.
Re1 {[%clk 0:01:23.1]} 32... Bxb2 {[%clk 0:00:15.8]} 33. Kg2 {[%clk 0:01:20.8]}
33... Bd4 {[%clk 0:00:14.5]} 34. Kf3 {[%clk 0:01:17.4]} 34... Rd8 {[%clk
0:00:11.5]} 35. e7 {[%clk 0:01:15.1]} 35... Re8 {[%clk 0:00:11.8]} 36. Bd6
{[%clk 0:01:14.9]} 36... b6 {[%clk 0:00:10.9]} 37. Ke4 {[%clk 0:01:14.2]} 37...
Bc3 {[%clk 0:00:07.1]} 38. Re2 {[%clk 0:01:11.5]} 38... Bf6 {[%clk 0:00:05.5]}
39. Kd5 {[%clk 0:01:11.2]} 39... h5 {[%clk 0:00:05.4]} 40. Ke6 {[%clk
0:01:08.3]} 40... h4 {[%clk 0:00:03.8]} 41. Kd7 {[%clk 0:01:08.2]} 1-0

[Event "*** Titled Tuesday Blitz"]
[Site "Chess.com"]
[Date "2020.10.27"]
[Round "6"]
[White "MomchilPetkov"]
[Black "Funo09"]
[Result "0-1"]
[WhiteElo "2642"]
[BlackElo "2800"]
[TimeControl "180+1"]
[EndTime "11:06:29 PDT"]
[Termination "Funo09 won by resignation"]

1. d4 {[%clk 0:03:00.9]} 1... Nf6 {[%clk 0:02:59.8]} 2. Bf4 {[%clk 0:02:59.9]}
2... g6 {[%clk 0:02:59.7]} 3. e3 {[%clk 0:02:59.9]} 3... Bg7 {[%clk 0:02:59.7]}
4. Nf3 {[%clk 0:03:00.4]} 4... O-O {[%clk 0:03:00.3]} 5. h3 {[%clk 0:03:00.4]}
5... d6 {[%clk 0:03:01]} 6. Be2 {[%clk 0:03:00.4]} 6... c5 {[%clk 0:03:01.7]} 7.
O-O {[%clk 0:02:57.9]} 7... Nc6 {[%clk 0:03:02.2]} 8. Bh2 {[%clk 0:02:48.7]}
8... Be6 {[%clk 0:03:01.8]} 9. Nbd2 {[%clk 0:02:27.5]} 9... Qb6 {[%clk
0:03:00.4]} 10. Nc4 {[%clk 0:01:50.6]} 10... Bxc4 {[%clk 0:02:53.4]} 11. Bxc4
{[%clk 0:01:51.5]} 11... Qxb2 {[%clk 0:02:53.1]} 12. Rb1 {[%clk 0:01:51.1]}
12... Qc3 {[%clk 0:02:52.7]} 13. Bb5 {[%clk 0:01:48.3]} 13... cxd4 {[%clk
0:02:49.3]} 14. Rb3 {[%clk 0:01:46.4]} 14... Qa5 {[%clk 0:02:46.8]} 15. exd4
{[%clk 0:01:42.9]} 15... Rac8 {[%clk 0:02:41.6]} 16. c4 {[%clk 0:01:40.3]} 16...
a6 {[%clk 0:02:38.5]} 17. Bxc6 {[%clk 0:01:39.9]} 17... bxc6 {[%clk 0:02:37.4]}
18. Qe2 {[%clk 0:01:39.1]} 18... Rfe8 {[%clk 0:02:28]} 19. Rb7 {[%clk
0:01:39.1]} 19... Rc7 {[%clk 0:02:22.2]} 20. Rfb1 {[%clk 0:01:39.2]} 20... Rec8
{[%clk 0:02:08.9]} 21. Rxc7 {[%clk 0:01:22.4]} 21... Qxc7 {[%clk 0:02:07.4]} 22.
c5 {[%clk 0:01:19.7]} 22... a5 {[%clk 0:02:06.1]} 23. Qa6 {[%clk 0:00:59.7]}
23... Ne4 {[%clk 0:01:56.4]} 24. Rb7 {[%clk 0:00:54.8]} 24... Qd8 {[%clk
0:01:52.4]} 25. Qd3 {[%clk 0:00:29.4]} 25... d5 {[%clk 0:01:47.4]} 26. Be5
{[%clk 0:00:28.6]} 26... Bxe5 {[%clk 0:01:34.2]} 27. Nxe5 {[%clk 0:00:28.4]}
27... f6 {[%clk 0:01:34.3]} 28. Nd7 {[%clk 0:00:25.9]} 28... Kf7 {[%clk
0:01:15.4]} 29. f3 {[%clk 0:00:24.7]} 29... Ng3 {[%clk 0:01:12.5]} 30. Qe3
{[%clk 0:00:18.3]} 30... Rc7 {[%clk 0:01:09.2]} 31. Rxc7 {[%clk 0:00:07.9]}
31... Qxc7 {[%clk 0:01:10.1]} 32. Nb6 {[%clk 0:00:05.7]} 32... Nf5 {[%clk
0:01:10.6]} 33. Qd3 {[%clk 0:00:04.7]} 33... Qf4 {[%clk 0:01:09.3]} 34. g4
{[%clk 0:00:05]} 34... Nxd4 {[%clk 0:01:08.4]} 35. Kg2 {[%clk 0:00:03.3]} 35...
Ne6 {[%clk 0:01:05.9]} 36. Nd7 {[%clk 0:00:02.2]} 36... Qc7 {[%clk 0:01:04.4]}
37. Nb6 {[%clk 0:00:01.5]} 37... Nxc5 {[%clk 0:01:04.3]} 38. Qb1 {[%clk
0:00:02.4]} 38... Ne6 {[%clk 0:01:02.5]} 39. Qb2 {[%clk 0:00:02.2]} 39... Nf4+
{[%clk 0:01:00.5]} 40. Kh2 {[%clk 0:00:01.9]} 40... Nd3+ {[%clk 0:01:00]} 0-1

[Event "*** Titled Tuesday Blitz"]
[Site "Chess.com"]
[Date "2020.10.27"]
[Round "6"]
[White "GigaQuparadze"]
[Black "Benjoneliere44"]
[Result "1-0"]
[WhiteElo "2836"]
[BlackElo "2679"]
[TimeControl "180+1"]
[EndTime "11:06:31 PDT"]
[Termination "GigaQuparadze won by resignation"]

1. e4 {[%clk 0:03:00.9]} 1... c5 {[%clk 0:02:59.3]} 2. Ne2 {[%clk 0:03:00.5]}
2... d6 {[%clk 0:02:56.8]} 3. g3 {[%clk 0:03:00.2]} 3... g6 {[%clk 0:02:55.4]}
4. Bg2 {[%clk 0:02:59.8]} 4... Bg7 {[%clk 0:02:55.6]} 5. c3 {[%clk 0:02:59.6]}
5... Nf6 {[%clk 0:02:53.7]} 6. d4 {[%clk 0:02:59.7]} 6... cxd4 {[%clk
0:02:49.4]} 7. cxd4 {[%clk 0:03:00.6]} 7... O-O {[%clk 0:02:49.7]} 8. Nbc3
{[%clk 0:03:00.6]} 8... Nc6 {[%clk 0:02:48.8]} 9. h3 {[%clk 0:02:59.7]} 9... e5
{[%clk 0:02:41.6]} 10. d5 {[%clk 0:02:57.9]} 10... Nd4 {[%clk 0:02:37.6]} 11.
Nxd4 {[%clk 0:02:55.9]} 11... exd4 {[%clk 0:02:36.4]} 12. Ne2 {[%clk 0:02:51.7]}
12... Re8 {[%clk 0:02:35.2]} 13. f3 {[%clk 0:02:51.4]} 13... Bd7 {[%clk
0:02:09.7]} 14. O-O {[%clk 0:02:48]} 14... Bb5 {[%clk 0:02:08]} 15. Kh2 {[%clk
0:02:44.4]} 15... d3 {[%clk 0:02:00.4]} 16. Nc3 {[%clk 0:02:41]} 16... Ba6
{[%clk 0:01:56.2]} 17. Rf2 {[%clk 0:02:35.1]} 17... Nh5 {[%clk 0:01:46.2]} 18.
f4 {[%clk 0:02:32.2]} 18... Rc8 {[%clk 0:01:39.1]} 19. Bd2 {[%clk 0:02:31.7]}
19... Bd4 {[%clk 0:01:30.3]} 20. Rf1 {[%clk 0:02:31.4]} 20... f5 {[%clk
0:01:23.7]} 21. exf5 {[%clk 0:02:28.3]} 21... Re2 {[%clk 0:01:24.2]} 22. Rf3
{[%clk 0:02:23.7]} 22... Bxc3 {[%clk 0:01:01.8]} 23. Bxc3 {[%clk 0:02:21.6]}
23... gxf5 {[%clk 0:00:56.2]} 24. Rxd3 {[%clk 0:01:35.3]} 24... Qe7 {[%clk
0:00:56]} 25. Rf3 {[%clk 0:01:13.6]} 25... Rxg2+ {[%clk 0:00:50.4]} 26. Kxg2
{[%clk 0:01:14.5]} 26... Be2 {[%clk 0:00:50.6]} 27. Qd4 {[%clk 0:01:14.5]} 27...
Bxf3+ {[%clk 0:00:44]} 28. Kxf3 {[%clk 0:01:15.4]} 28... Qe4+ {[%clk 0:00:33.5]}
29. Qxe4 {[%clk 0:01:13.8]} 29... fxe4+ {[%clk 0:00:34.4]} 30. Kf2 {[%clk
0:01:11.8]} 30... e3+ {[%clk 0:00:21.9]} 31. Kf3 {[%clk 0:01:11.6]} 31... Re8
{[%clk 0:00:19.5]} 32. g4 {[%clk 0:01:10.3]} 32... Ng7 {[%clk 0:00:19.1]} 33.
Bxg7 {[%clk 0:01:10.1]} 33... Kxg7 {[%clk 0:00:20]} 34. Re1 {[%clk 0:01:10.2]}
34... Kf6 {[%clk 0:00:19.3]} 35. Rxe3 {[%clk 0:01:10.1]} 35... Rc8 {[%clk
0:00:20.2]} 36. Re6+ {[%clk 0:01:09.9]} 36... Kf7 {[%clk 0:00:20.6]} 37. Rxd6
{[%clk 0:01:10.3]} 37... Rc2 {[%clk 0:00:20.8]} 38. Rd7+ {[%clk 0:01:10.5]}
38... Kf6 {[%clk 0:00:21.4]} 39. Rxb7 {[%clk 0:01:10.5]} 39... h5 {[%clk
0:00:21.9]} 40. gxh5 {[%clk 0:01:09.9]} 40... a5 {[%clk 0:00:20.6]} 41. h6
{[%clk 0:01:09.9]} 41... Rc8 {[%clk 0:00:19.1]} 42. h7 {[%clk 0:01:09.8]} 42...
Rh8 {[%clk 0:00:18.6]} 43. Kg4 {[%clk 0:01:10]} 43... a4 {[%clk 0:00:19.2]} 44.
f5 {[%clk 0:01:10]} 44... a3 {[%clk 0:00:20]} 45. bxa3 {[%clk 0:01:09.9]} 45...
Ra8 {[%clk 0:00:18.4]} 46. Kh5 {[%clk 0:01:08.7]} 46... Kxf5 {[%clk 0:00:16.5]}
47. Rf7+ {[%clk 0:01:07.4]} 47... Ke5 {[%clk 0:00:16.7]} 48. Kg6 {[%clk
0:01:07.5]} 48... Kxd5 {[%clk 0:00:16.5]} 49. Kg7 {[%clk 0:01:07.7]} 1-0